[Event "4th Tata Steel India Blitz Women 2022"]
[Site "Kolkota"]
[Date "2022.12.03"]
[Round "8.2"]
[White "Muzychuk, Anna"]
[Black "Dzagnidze, Nana"]
[Result "1/2-1/2"]
[ECO "B90"]
[WhiteElo "2525"]
[BlackElo "2517"]
[Annotator "TA"]
[PlyCount "99"]
[EventDate "2022.11.29"]
[EventType "tourn"]
[EventCountry "IND"]
[SourceTitle "playchess.com"]
[Source "ChessBase"]
[SourceQuality "1"]
[TimeControl "180+2"]

{[%evp 10,99,31,10,17,0,0,0,97,95,117,114,112,108,104,72,125,125,129,129,154,0,0,-60,14,9,0,0,18,3,28,10,14,0,7,7,22,10,57,43,63,8,33,45,52,43,72,0,0,0,152,149,190,190,197,206,224,231,231,50,50,44,44,0,44,0,44,0,44,0,0,0,0,0,0,0,0,0,0,0,0,0,0,0,0,0,0,0,0,0,0,0]} 1. e4 {[%emt 0:00:00]} c5 {[%emt 0:00:01]} 2. Nf3 d6 3. d4 {[%emt 0:00:02]} cxd4 {[%emt 0:00:01]} 4. Nxd4 {[%emt 0:00:01]} Nf6 {[%emt 0:00:01]} 5. Nc3 {[%emt 0:00:01]} a6 {[%emt 0:00:00]} 6. a3 {[%emt 0:00:03]} e5 {[%emt 0:00:24] B90: Sicilian Najdorf: Unusual White 6th moves, 6 Be3 Ng4 and 6 Be3 e5.} 7. Nf5 {[%emt 0:00:08]} d5 {[%emt 0:00:35]} 8. Bg5 {[%emt 0:00:05][%cal Rc3d5]} (8. Nxd5 $2 Nxd5 9. Nxg7+ Bxg7 $17) 8... Bxf5 {[%emt 0:00:10] [#]} (8... d4 $1 $11 {keeps the balance.} 9. Bxf6 gxf6) 9. Bxf6 $1 $16 {[%emt 0:00:32]} gxf6 {[%emt 0:00:13]} 10. exf5 {[%emt 0:00:04]} d4 {[%emt 0:00:18]} 11. Ne4 {[%emt 0:00:01]} Be7 {[%emt 0:00:28]} 12. Qh5 {[%emt 0:00:23] [#]} Qc7 $146 {[%emt 0:00:11]} ({Black should try} 12... Qa5+ 13. c3 Qd5) ({Predecessor:} 12... Qd5 13. Nd2 b5 14. Bd3 Nc6 15. Be4 Qd6 16. O-O O-O 17. a4 Rab8 18. axb5 axb5 19. Ra3 Nb4 20. Rg3+ Kh8 21. Rh3 Rg8 22. Qxh7# {1-0 (22) Silva,D (2258)-Kamara,A (1899) Tornelo INT 2021}) 13. Bd3 {[%emt 0:00:05]} Nd7 {[%emt 0:00:03]} 14. O-O {[%emt 0:00:23]} Nb6 {[%emt 0:00:05]} 15. f4 $2 {[%emt 0:00:07] White has more active pieces. The black rooks are badly placed.} (15. Rfc1 $16) 15... exf4 $11 {[%emt 0:00:03]} 16. c4 {[%emt 0:00:43] Inhibits Nd5.} ({White should play} 16. b4 $11) 16... Nd7 {[%emt 0:00:17]} (16... dxc3 $15 17. Nxc3 O-O-O) 17. Qh6 {[%emt 0:00:13]} (17. Rad1 {is interesting.} Rg8 18. Qh4 f3 19. Rxf3 Ne5 20. Rf2) 17... O-O-O {[%emt 0:00:13]} 18. Qxf4 {[%emt 0:00:04][%cal Oc4c5]} Rhg8 {[%emt 0:00:16]} 19. Rad1 {[%emt 0:00:07]} h5 {[%emt 0:00:07]} (19... Ne5 {looks sharper.} 20. h3 Qc6 21. c5 Qa4) 20. Qxc7+ {[%emt 0:00:10]} (20. b4 {keeps more tension.} Ne5 21. h3 Qc6 22. b5) 20... Kxc7 {[%emt 0:00:01]} 21. b4 {[%emt 0:00:06]} b6 {[%emt 0:00:04]} 22. Be2 {[%emt 0:00:14][%csl LRd4,LRh5][%cal Bd3e2,Be2h5,Bh5f3][%mdl 32]} Ne5 {[%emt 0:00:05]} 23. Bxh5 {[%emt 0:00:03]} Rg7 {[%emt 0:00:07]} (23... Rh8 $11 24. Bf3 a5) 24. Bf3 {[%emt 0:00:05]} a5 {[%emt 0:00:02]} 25. c5 {[%emt 0:00:02]} (25. g3 $14) 25... axb4 {[%emt 0:00:03]} 26. axb4 {[%emt 0:00:01]} bxc5 27. bxc5 {[%emt 0:00:01]} ({Reject} 27. Nxc5 d3 $11) 27... d3 {[%emt 0:00:04]} 28. Ra1 {[%emt 0:00:04]} ({Better is} 28. g3 $16) 28... Nxf3+ $1 {[%emt 0:00:03]} 29. Rxf3 {[%emt 0:00:01] [#] aiming for Ra7+.} Kc6 $2 {[%emt 0:00:01]} (29... d2 $11 30. Nd6 Bxd6 31. cxd6+ Rxd6 32. Rc3+ Kd8) 30. Rd1 {[%emt 0:00:04]} ({Stronger than} 30. Ra6+ Kb5 31. Rb6+ Kc4 32. Nd2+ (32. Nxf6 $2 {loses.} Bxc5+ 33. Kh1 Bxb6 $19) 32... Kc3 33. Nb1+ Kc4 34. Nd2+ Kc3 35. Ne4+ Kc4 36. Nd2+ $11 (36. Nxf6 $2 Bxc5+ 37. Kh1 Bxb6 $19)) 30... Bxc5+ {[%emt 0:00:03]} 31. Nxc5 {[%emt 0:00:00]} Kxc5 {[%emt 0:00:01]} 32. Rfxd3 {[%emt 0:00:02]} Rxd3 {[%emt 0:00:02]} 33. Rxd3 $16 {[%emt 0:00:00][%mdl 4096] Endgame Strongly threatening h3. KR-KR} Rg5 {[%emt 0:00:02]} 34. Rd7 $2 {[%emt 0:00:06]} (34. h4 $18 Rxf5 35. g3) 34... Rxf5 $14 {[%emt 0:00:01]} 35. Rxf7 {[%emt 0:00:00]} Kd6 {[%emt 0:00:01] Prevents Rd7+.} 36. h4 {[%emt 0:00:03]} Ke6 {[%emt 0:00:02]} 37. Rg7 {[%emt 0:00:01]} Ra5 {[%emt 0:00:03]} 38. Kh2 {[%emt 0:00:01]} Ra3 {[%emt 0:00:01]} 39. g3 {[%emt 0:00:02]} f5 {[%emt 0:00:01] The position is equal.} 40. h5 {[%emt 0:00:03]} Kf6 {[%emt 0:00:01]} 41. Rg6+ {[%emt 0:00:01]} Kf7 {[%emt 0:00:01]} 42. Kh3 {[%emt 0:00:01]} Ra4 {[%emt 0:00:01]} 43. Rb6 {[%emt 0:00:02]} Kg7 {[%emt 0:00:02]} 44. Rb5 {[%emt 0:00:04]} Kf6 {[%emt 0:00:01]} 45. Rc5 {[%emt 0:00:01]} Rb4 {[%emt 0:00:01]} 46. Rc6+ {[%emt 0:00:03]} Kg5 {[%emt 0:00:02]} 47. h6 {[%emt 0:00:00]} Rb7 {[%emt 0:00:01]} 48. Kg2 {[%emt 0:00:03]} Rh7 {[%emt 0:00:04]} 49. Kf3 {[%emt 0:00:01]} Rxh6 {[%emt 0:00:00]} 50. Rxh6 {[%emt 0:00:02] Weighted Error Value: White=0.28 (precise) /Black=0.23 (precise)} 1/2-1/2

[Event "4th Tata Steel India Blitz Women 2022"]
[Site "Kolkota"]
[Date "2022.12.03"]
[Round "8.3"]
[White "Vaishali, Rameshbabu"]
[Black "Kiolbasa, Oliwia"]
[Result "1-0"]
[ECO "D02"]
[WhiteElo "2454"]
[BlackElo "2406"]
[Annotator "TA"]
[PlyCount "53"]
[EventDate "2022.11.29"]
[EventType "tourn"]
[EventCountry "IND"]
[SourceTitle "playchess.com"]
[Source "ChessBase"]
[SourceQuality "1"]
[TimeControl "180+2"]

{[%evp 9,53,24,27,26,24,19,29,26,34,24,29,25,31,32,39,25,31,29,22,7,39,20,69,71,70,70,79,21,429,428,427,430,545,461,556,341,472,439,942,945,1100,1079,29985,29986,29986,29987]} 1. d4 {[%emt 0:00:03]} d5 {[%emt 0:00:01]} 2. Nf3 {[%emt 0:00:02]} e6 {[%emt 0:00:01]} 3. Bf4 {[%emt 0:00:02]} c5 {[%emt 0:00:02]} 4. e3 {[%emt 0:00:02]} cxd4 {[%emt 0:00:03]} 5. exd4 {[%emt 0:00:01]} Nc6 {[%emt 0:00:01]} 6. Bd3 {[%emt 0:00:13] D02: 1 d4 d5 2 Nf3 sidelines, including 2...Nf6 3 g3 and 2...Nf6 3 Bf4.} Bd6 {[%emt 0:00:03]} 7. Bxd6 {[%emt 0:00:04]} Qxd6 {[%emt 0:00:02]} 8. O-O {[%emt 0:00:10] White has an edge.} Nge7 {[%emt 0:00:07]} 9. Nbd2 {[%emt 0:00:22][%cal Bb1d2,Bd2b3,Bb3c5][%mdl 32] [#]} f6 $146 {[%emt 0:00:11]} ({Predecessor:} 9... Ng6 10. Re1 Bd7 11. c3 O-O 12. Ng5 Qf4 13. Qh5 h6 14. Ndf3 e5 15. Nxf7 e4 16. Nxh6+ Qxh6 17. Qxd5+ {½-½ (64) Mamedyarov,S (2764)-Sanal,V (2581) Playchess.com INT 2020}) 10. c4 {[%emt 0:00:10]} O-O {[%emt 0:00:23]} 11. Re1 {[%emt 0:00:05]} Bd7 {[%emt 0:00:55]} 12. Rc1 {[%emt 0:00:49]} Rae8 {[%emt 0:00:02]} 13. a3 {[%emt 0:00:18]} Nf5 {[%emt 0:00:25]} 14. Nb3 {[%emt 0:00:35]} Kh8 {[%emt 0:00:19]} (14... dxc4 {simplifies} 15. Bxc4 Kh8 16. d5 exd5 17. Qxd5 Qxd5 18. Bxd5 Rxe1+ 19. Rxe1 Re8) 15. cxd5 {[%emt 0:00:12]} (15. Nc5 {simplifies} Ncxd4 16. Nxd7 Qxd7 17. Nxd4 Nxd4 18. Bxh7 Kxh7 19. Qxd4 Kg8 20. Rcd1) 15... Qxd5 {[%emt 0:00:19]} (15... exd5 $11 16. Rf1 b6) 16. Nc5 $14 {[%emt 0:00:06] [#] Black must now prevent Bc4.} Bc8 {[%emt 0:00:09]} 17. Be4 {[%emt 0:00:09]} Qd6 {[%emt 0:00:10][%cal Rc6d4]} 18. b4 {[%emt 0:00:06]} ({Better is} 18. Bxc6 $16 bxc6 19. h3) 18... Nfxd4 $2 {[%emt 0:00:17][%mdl 8192] A mistake that costs the game.} (18... Ncxd4 $11 19. Bxb7 e5) 19. Bxc6 $18 {[%emt 0:00:04][%mdl 64] [#] Pin} Nxf3+ {[%emt 0:00:06]} 20. Bxf3 {[%emt 0:00:02]} Qb8 {[%emt 0:00:03]} 21. Qb3 {[%emt 0:00:02]} b6 {[%emt 0:00:02]} 22. Ne4 {[%emt 0:00:02]} Qf4 {[%emt 0:00:01]} 23. g3 {[%emt 0:00:02]} Qh6 {[%emt 0:00:02]} (23... Qb8 $142 24. Red1 e5) 24. Nd6 {[%emt 0:00:01]} Rd8 {[%emt 0:00:02]} 25. Nxc8 {[%emt 0:00:02]} Rxc8 {[%emt 0:00:01]} 26. Rxc8 {[%emt 0:00:02]} Rxc8 {[%emt 0:00:00]} 27. Qxe6 {[%emt 0:00:01] Weighted Error Value: White=0.29 (precise) /Black=0.80} 1-0

[Event "4th Tata Steel India Blitz Women 2022"]
[Site "Kolkota"]
[Date "2022.12.03"]
[Round "8.4"]
[White "Koneru, Humpy"]
[Black "Kulkarni Bhakti"]
[Result "1/2-1/2"]
[ECO "E90"]
[WhiteElo "2574"]
[BlackElo "2359"]
[Annotator "TA"]
[PlyCount "130"]
[EventDate "2022.11.29"]
[EventType "tourn"]
[EventCountry "IND"]
[SourceTitle "playchess.com"]
[Source "ChessBase"]
[SourceQuality "1"]
[TimeControl "180+2"]

{[%evp 14,130,37,0,0,0,14,0,-6,-33,-16,-117,-35,-29,-2,-2,0,-42,13,9,15,0,31,0,68,60,68,55,67,60,66,50,149,149,171,37,29,8,222,249,218,98,102,100,205,144,217,160,158,164,164,162,156,22,20,13,10,0,0,0,0,0,0,0,0,0,0,0,0,0,0,0,0,0,0,0,0,0,0,-53,-63,-113,-111,-135,-64,-66,-69,-77,-35,-118,-38,-38,-38,-39,0,-17,0,0,0,0,0,0,0,0,0,0,0,0,0,0,0,0,0,0,0,0,0,0,0]} 1. d4 {[%emt 0:00:01]} Nf6 {[%emt 0:00:01]} 2. c4 {[%emt 0:00:02]} g6 {[%emt 0:00:02]} 3. Nc3 {[%emt 0:00:02]} Bg7 {[%emt 0:00:01]} 4. e4 {[%emt 0:00:03]} d6 {[%emt 0:00:01]} 5. h3 {[%emt 0:00:09]} O-O {[%emt 0:00:04]} 6. Be3 {[%emt 0:00:02]} c5 {[%emt 0:00:04]} 7. Nf3 {[%emt 0:00:10]} Qa5 {[%emt 0:00:05]} 8. Qd2 {[%emt 0:00:14]} (8. Bd3 $5 {[%cal Rd4d5]}) 8... cxd4 {[%emt 0:00:08] E90: King's Indian: Classical: Early deviations and 6 h3.} 9. Nxd4 {[%emt 0:00:03]} Nc6 {[%emt 0:00:04]} 10. Nb3 {[%emt 0:00:05]} Qb4 {[%emt 0:00:29] [#]} 11. Be2 $146 {[%emt 0:00:45]} ({Predecessor:} 11. Rc1 Be6 12. Nd5 Qa4 13. Nc3 Qb4 14. Nd5 Qxd2+ 15. Nxd2 Rfc8 16. Nf4 Nd7 17. Nxe6 fxe6 {0-1 (67) Cardoso Cardoso,J (2401)-Pour Agha Bala,A (2432) Tornelo INT 2020}) 11... Be6 {[%emt 0:00:07]} 12. Nd5 {[%emt 0:00:34]} (12. Nc1 $1 $11 {remains equal.}) 12... Qxd2+ {[%emt 0:00:03]} (12... Bxd5 $1 $17 13. exd5 Ne4 14. Qxb4 Nxb4) 13. Nxd2 $15 {[%emt 0:00:02]} Rfc8 {[%emt 0:00:38][%cal Ob7b5]} 14. O-O {[%emt 0:00:30]} Nd7 {[%emt 0:00:02]} 15. Nf3 {[%emt 0:00:20]} Nde5 {[%emt 0:00:43]} (15... Bxd5 $15 16. cxd5 (16. exd5 Na5 $15) 16... Na5) 16. Nxe5 $11 {[%emt 0:00:06]} Bxe5 {[%emt 0:00:02]} 17. Rfd1 {[%emt 0:00:10]} Rab8 {[%emt 0:00:09]} 18. Rd2 {[%emt 0:00:03]} Kf8 {[%emt 0:00:14]} (18... Bxd5 $1 $11 19. exd5 (19. cxd5 Na5 $11) 19... Na5) 19. Rad1 {[%emt 0:00:07]} b6 {[%emt 0:00:06]} 20. f4 {[%emt 0:00:03]} Bg7 {[%emt 0:00:01]} 21. g4 {[%emt 0:00:02]} Na5 {[%emt 0:00:10]} 22. b3 {[%emt 0:00:02]} f5 {[%emt 0:00:06]} (22... Nb7 $14) 23. exf5 $16 {[%emt 0:00:04]} gxf5 {[%emt 0:00:01]} 24. gxf5 {[%emt 0:00:03]} (24. Bf2 $18) 24... Bxf5 $14 {[%emt 0:00:02]} 25. Bg4 {[%emt 0:00:03]} e6 {[%emt 0:00:15]} (25... Bxg4 $11 {and Black has nothing to worry.} 26. hxg4 e6) 26. Bxf5 $18 {[%emt 0:00:03]} exf5 {[%emt 0:00:01]} 27. Bd4 {[%emt 0:00:03]} (27. Bf2 $18 {and White stays clearly on top.}) 27... Bxd4+ $16 {[%emt 0:00:07]} 28. Rxd4 {[%emt 0:00:01]} Nb7 {[%emt 0:00:02]} (28... b5 $16) 29. Kf2 {[%emt 0:00:02]} Re8 {[%emt 0:00:01]} (29... b5 $16 {keeps fighting.} 30. Ne3 (30. cxb5 Rc2+ 31. R1d2 Rxd2+ 32. Rxd2 Nc5 $16) 30... bxc4) 30. Nc7 {[%emt 0:00:02]} Re7 {[%emt 0:00:06] [#]} 31. Nb5 {[%emt 0:00:01][%csl LRa7,LRd6] White is more active.} Rbe8 {[%emt 0:00:02]} 32. R1d2 {[%emt 0:00:02] Inhibits Re2+.} (32. Nxa7 Re2+ 33. Kg3 R8e3+ 34. Kh4 Rh2 $11) 32... Re3 {[%emt 0:00:04]} 33. h4 {[%emt 0:00:02]} ({Resist} 33. Nxd6 $6 Nxd6 34. Rxd6 Rxh3 $14) (33. Nc7 $16 R8e4 34. Rxe4 Rxe4 35. Kf3) 33... Rh3 $1 $11 {[%emt 0:00:02]} 34. Kg2 {[%emt 0:00:03]} Rxh4 {[%emt 0:00:02]} 35. Nxd6 {[%emt 0:00:02]} Nxd6 {[%emt 0:00:01]} 36. Rxd6 {[%emt 0:00:01]} Rxf4 {[%emt 0:00:02][%mdl 4096] Endgame KRR-KRR} 37. Rd7 {[%emt 0:00:02]} Re7 {[%emt 0:00:01]} 38. Rd8+ {[%emt 0:00:02]} Kf7 {[%emt 0:00:01]} 39. Kg3 {[%emt 0:00:02]} Rg4+ {[%emt 0:00:01]} 40. Kf3 {[%emt 0:00:01]} h5 {[%emt 0:00:02]} 41. R2d5 {[%emt 0:00:01]} Rg5 {[%emt 0:00:05]} 42. R8d6 {[%emt 0:00:04]} Re6 {[%emt 0:00:01]} 43. Rd7+ {[%emt 0:00:02]} Re7 {[%emt 0:00:01]} 44. R7d6 {[%emt 0:00:01]} Re6 {[%emt 0:00:01]} 45. Rd7+ {[%emt 0:00:02]} Re7 {[%emt 0:00:01]} 46. b4 {[%emt 0:00:02]} (46. Kf4 $11 Rxd7 47. Rxd7+ Kf6 48. Rd6+ Ke7 49. Rh6) 46... h4 $1 $15 {[%emt 0:00:04][%cal Bh5h4,Bh4h3,Bh3h2][%mdl 32]} 47. R7d6 {[%emt 0:00:02] [#]} ({White should play} 47. c5 $15) 47... Rh5 $1 $17 {[%emt 0:00:02]} 48. c5 {[%emt 0:00:04]} bxc5 {[%emt 0:00:02]} ({Better is} 48... h3 $17 49. Rd1 h2) 49. bxc5 $15 {[%emt 0:00:01]} h3 {[%emt 0:00:01]} 50. Rd1 {[%emt 0:00:01]} h2 {[%emt 0:00:03]} 51. Rh1 {[%emt 0:00:01]} ({White should try} 51. Kg2 $15) 51... Rc7 {[%emt 0:00:02]} (51... Re5 $17 52. c6 Rc5) 52. c6 {[%emt 0:00:02]} Ke7 {[%emt 0:00:00]} 53. Rg6 {[%emt 0:00:00]} Rh3+ {[%emt 0:00:03]} (53... Rc8 {simplifies} 54. Rg2 Rxc6 55. Rhxh2 Rc3+) 54. Kf4 {[%emt 0:00:02] The position is equal.} Rc3 {[%emt 0:00:01]} (54... Rc8 {seems wilder.} 55. Ke5 Re3+ 56. Kf4 Re4+) 55. Rxh2 {[%emt 0:00:02] Rh7+ is the strong threat.} R7xc6 {[%emt 0:00:04]} 56. Rh7+ {[%emt 0:00:01]} (56. Kxf5 $2 {is the wrong capture.} R3c5+ 57. Kf4 Rxg6 $19) 56... Kf8 {[%emt 0:00:01]} 57. Rxc6 {[%emt 0:00:03]} (57. Kxf5 $2 {perishes.} R3c5+ 58. Kf4 Rxg6 $19) 57... Rxc6 {[%emt 0:00:01]} 58. Rxa7 $11 {[%emt 0:00:01] KR-KR} Rc5 {[%emt 0:00:03]} 59. a4 {[%emt 0:00:03][%cal Ba2a4,Ba4a5][%mdl 32]} Ke8 {[%emt 0:00:01]} 60. a5 {[%emt 0:00:01]} Kd8 {[%emt 0:00:01]} 61. a6 {[%emt 0:00:01] Threatens to win with Rh7.} Ra5 {[%emt 0:00:08]} 62. Ra8+ {[%emt 0:00:04]} Kc7 {[%emt 0:00:01]} 63. a7 {[%emt 0:00:01]} Kb7 {[%emt 0:00:01][%csl LRa7,LRa8]} 64. Rf8 {[%emt 0:00:02]} Rxa7 {[%emt 0:00:01]} 65. Rxf5 {[%emt 0:00:01]} Ra4+ {[%emt 0:00:00] White really could win this.   Weighted Error Value: White=0.22 (precise) /Black=0.22 (precise)} 1/2-1/2

[Event "4th Tata Steel India Blitz Women 2022"]
[Site "Kolkota"]
[Date "2022.12.03"]
[Round "8.5"]
[White "Muzychuk, Mariya"]
[Black "Harika, Dronavalli"]
[Result "1-0"]
[ECO "B22"]
[WhiteElo "2528"]
[BlackElo "2507"]
[Annotator "TA"]
[PlyCount "93"]
[EventDate "2022.11.29"]
[EventType "tourn"]
[EventCountry "IND"]
[SourceTitle "playchess.com"]
[Source "ChessBase"]
[SourceQuality "1"]
[TimeControl "180+2"]

{[%evp 25,93,37,43,4,5,0,36,9,11,0,51,56,52,47,47,54,116,104,164,155,146,119,670,629,5397,5397,2332,579,572,572,523,560,714,572,861,845,1589,1521,6037,6037,4694,850,2226,836,838,816,4702,4702,1459,1103,1132,1132,1117,1089,922,885,1085,1070,1654,1646,1635,1635,1595,1566,1537,1330,29955,6512,29973,29963]} 1. e4 {[%emt 0:00:01]} c5 {[%emt 0:00:01]} 2. c3 {[%emt 0:00:00]} d5 {[%emt 0:00:02]} 3. exd5 {[%emt 0:00:01]} Qxd5 {[%emt 0:00:01]} 4. d4 {[%emt 0:00:01]} Nc6 {[%emt 0:00:01]} 5. Nf3 {[%emt 0:00:01]} cxd4 {[%emt 0:00:03]} 6. cxd4 {[%emt 0:00:06]} e5 {[%emt 0:00:01]} 7. Nc3 {[%emt 0:00:25]} Bb4 {[%emt 0:00:02]} 8. Bd2 {[%emt 0:00:01]} Bxc3 {[%emt 0:00:01]} 9. Bxc3 {[%emt 0:00:00]} e4 {[%emt 0:00:03]} 10. Ne5 {[%emt 0:00:18]} Nxe5 {[%emt 0:00:03]} 11. dxe5 {[%emt 0:00:01]} Ne7 {[%emt 0:00:01]} 12. Be2 {[%emt 0:00:18]} Be6 {[%emt 0:00:34]} 13. O-O {[%emt 0:00:03]} O-O {[%emt 0:00:02] [#]} 14. a4 $5 $146 {[%emt 0:00:48][%mdl 8] New and interesting. B22: Sicilian: 2 c3.} ({Predecessor:} 14. Bb4 Rfe8 15. Bd6 Nc6 16. b3 Rad8 17. Bc4 Qxd1 18. Rfxd1 Bxc4 19. bxc4 h6 20. Rd5 Re6 21. Re1 Nxe5 22. Rxe5 Rdxd6 {0-1 (36) Prohorov,O (2086)-Redor,M (2019) Chess.com INT 2022}) 14... Rfd8 {[%emt 0:00:08]} 15. Qc2 {[%emt 0:00:07]} Bf5 {[%emt 0:00:14]} 16. Rfd1 {[%emt 0:00:15] White is slightly better.} Qe6 {[%emt 0:00:01][%cal Oe4e3]} 17. Qc1 {[%emt 0:00:09] Inhibits e3.} Ng6 {[%emt 0:00:12]} (17... h6 $11) 18. Qg5 $14 {[%emt 0:00:05]} Rxd1+ {[%emt 0:00:09]} 19. Rxd1 {[%emt 0:00:00][%cal Ba1d1,Bd1d6,Bd6d5,Bd5e5][%mdl 32] [#] Black must now prevent g4.} ({But not} 19. Bxd1 h6 20. Qg3 Rd8 $11) 19... h6 {[%emt 0:00:02]} 20. Qg3 {[%emt 0:00:06]} a6 {[%emt 0:00:10]} (20... Qe7 $14) 21. h4 $16 {[%emt 0:00:02] White is more active.} Re8 {[%emt 0:00:04] [#]} (21... Qe7 $16 {might work better.}) 22. Rd6 $1 $36 {[%emt 0:00:05][%mdl 2048] Black is under strong pressure.} Qe7 {[%emt 0:00:07]} 23. Bc4 {[%emt 0:00:07] Prevents e3.} Nxe5 {[%emt 0:00:33][%mdl 8192] This move loses the game for Black.} (23... Kh7 $16) 24. Rd5 {[%emt 0:00:02][%cal Rd5e5]} ({Less strong is} 24. Rxh6 e3 25. fxe3 Ng4 $14) 24... e3 {[%emt 0:00:19]} 25. Rxe5 {[%emt 0:00:08]} exf2+ {[%emt 0:00:07]} 26. Kxf2 {[%emt 0:00:01]} (26. Kf1 $142 Qxe5 27. Bxe5) 26... Be6 {[%emt 0:00:04]} 27. Bxe6 {[%emt 0:00:10]} fxe6 {[%emt 0:00:01]} 28. Kg1 {[%emt 0:00:03][%cal Oe5e6] Hoping for Rxe6!} Qf7 {[%emt 0:00:01]} 29. Kh2 {[%emt 0:00:02]} Re7 {[%emt 0:00:03]} 30. a5 {[%emt 0:00:03]} Rd7 {[%emt 0:00:02]} 31. Re4 {[%emt 0:00:04]} Kh7 {[%emt 0:00:11]} 32. Rg4 {[%emt 0:00:01]} Qf8 {[%emt 0:00:15]} 33. Qe5 {[%emt 0:00:02]} (33. Rg6 $142 h5 34. Qg5) 33... Re7 {[%emt 0:00:01]} 34. Qe4+ {[%emt 0:00:02]} (34. h5 $142 Rf7 35. Qe4+ Kh8 36. Rg6 Qd6+ 37. Be5) 34... Qf5 {[%emt 0:00:07]} 35. h5 {[%emt 0:00:12] And now Qxf5+ would win.} Rf7 {[%emt 0:00:12]} 36. Qxf5+ {[%emt 0:00:01]} exf5 {[%emt 0:00:01][%mdl 4096] Endgame KRB-KR} 37. Rc4 {[%emt 0:00:01]} f4 {[%emt 0:00:02]} 38. Kh3 {[%emt 0:00:03]} g6 {[%emt 0:00:02]} 39. hxg6+ {[%emt 0:00:02]} Kxg6 {[%emt 0:00:01]} 40. Kg4 {[%emt 0:00:02]} h5+ {[%emt 0:00:01]} 41. Kf3 {[%emt 0:00:00]} Rf5 {[%emt 0:00:07]} 42. Rxf4 {[%emt 0:00:02]} Rd5 {[%emt 0:00:02]} 43. Rf6+ {[%emt 0:00:02]} Kg5 {[%emt 0:00:01]} 44. Rf7 {[%emt 0:00:06]} Rb5 {[%emt 0:00:02]} 45. Re7 {[%emt 0:00:02] Threatening mate with Re5+.} Kg6 {[%emt 0:00:01]} 46. Re6+ {[%emt 0:00:01]} (46. Re5 $142 Rb3 47. Kf4 h4 48. Kg4 Kf7 49. Kxh4 b6 50. Rf5+ Ke7 51. Rf6 bxa5 52. Rxa6) 46... Kg5 {[%emt 0:00:05]} 47. Re5+ {[%emt 0:00:02] Weighted Error Value: White=0.59/Black=0.73} 1-0